bitfinex/quotes_BTCUSD_20250619
["timestamp","ask_amount","ask_price","bid_price","bid_amount"]
[1750358145985,1.06989406,104590.0,104580.0,0.2304879]
[1750358146213,1.06989406,104590.0,104580.0,0.3859279]
[1750358146750,1.06989406,104590.0,104580.0,0.3763664]
[1750358147244,6.15646121,104590.0,104580.0,0.001]
[1750358147464,6.15646121,104590.0,104580.0,0.15648]
[1750358147684,6.15646121,104590.0,104580.0,0.001]
[1750358148362,6.1792831,104590.0,104580.0,0.001]
[1750358152906,6.3347231,104590.0,104580.0,0.001]
[1750358153822,5.84029491,104590.0,104580.0,0.001]
[1750358154232,5.81747302,104590.0,104580.0,0.001]
[1750358154898,5.84030615,104590.0,104580.0,0.001]
[1750358155124,5.66203302,104590.0,104580.0,0.001]
[1750358155820,6.17929311,104590.0,104580.0,0.001]
[1750358157229,6.15646121,104590.0,104580.0,0.001]
[1750358158403,6.19650121,104590.0,104580.0,0.001]
[1750358159078,5.70207302,104590.0,104580.0,0.001]
[1750358160435,6.19650121,104590.0,104580.0,0.001]
[1750358161391,5.70207302,104590.0,104580.0,0.001]
[1750358161617,5.68187302,104590.0,104580.0,0.001]
[1750358162585,6.19670121,104590.0,104580.0,0.001]
[1750358162815,6.39289566,104590.0,104580.0,0.001]
[1750358163070,6.53203732,104590.0,104580.0,0.001]
[1750358163971,6.56077532,104590.0,104580.0,0.001]
[1750358165328,6.59600971,104590.0,104580.0,0.001]
[1750358165583,6.56746184,104590.0,104580.0,0.001]
[1750358165811,6.56746038,104590.0,104580.0,0.001]
[1750358166282,7.13083627,104590.0,104580.0,0.001]
[1750358166517,6.61054857,104590.0,104580.0,0.001]
[1750358166746,7.10497676,104590.0,104580.0,0.001]
[1750358167257,0.21038473,104570.0,104560.0,0.0001]
[1750358167487,6.15840211,104570.0,104560.0,0.0001]
[1750358168624,6.16140211,104570.0,104560.0,0.0001]
[1750358168858,6.20340211,104570.0,104560.0,0.0001]
[1750358170071,6.20440211,104570.0,104560.0,0.0031]
[1750358170754,6.18250211,104570.0,104560.0,0.0031]
[1750358171178,6.20490211,104570.0,104560.0,0.0031]
[1750358171624,6.16240211,104570.0,104560.0,0.0031]
[1750358172763,6.20560211,104570.0,104560.0,0.0031]
[1750358172983,6.18300211,104570.0,104560.0,0.0031]
[1750358173650,6.23434311,104570.0,104560.0,0.0031]
[1750358173876,6.19114311,104570.0,104560.0,0.0031]
[1750358174534,5.16224673,104570.0,104560.0,0.0031]
[1750358174756,5.16224673,104570.0,104560.0,0.23557773]
[1750358174974,5.66797392,104570.0,104560.0,0.24514161]
[1750358175193,5.62793392,104570.0,104560.0,0.26426892]
[1750358175409,5.62793392,104570.0,104560.0,0.27383234]
[1750358176724,5.62793392,104570.0,104560.0,0.2547054]
[1750358176946,5.62793392,104570.0,104560.0,0.27383252]
[1750358177227,5.62793392,104570.0,104560.0,0.28339585]
[1750358177451,5.62793392,104570.0,104560.0,0.2642691]
[1750358177903,5.62793392,104570.0,104560.0,0.27383271]
[1750358178357,5.62793392,104570.0,104560.0,0.28339623]
[1750358178577,5.61837141,104570.0,104560.0,0.2642691]
[1750358178813,5.60880863,104570.0,104560.0,0.2642691]
[1750358180236,5.60880863,104570.0,104560.0,0.2547054]
[1750358180449,5.61837151,104570.0,104560.0,0.26426892]
[1750358187680,5.42711207,104570.0,104560.0,0.26426892]
[1750358187896,5.61837151,104570.0,104560.0,0.26426892]
[1750358188556,5.61837151,104570.0,104560.0,0.27383234]
[1750358191294,5.61837151,104570.0,104560.0,0.24514161]
[1750358191554,5.61837151,104570.0,104560.0,0.2547054]
[1750358191991,5.61837151,104570.0,104560.0,0.2642691]
[1750358193328,5.61837151,104570.0,104560.0,0.0031]
[1750358193546,5.61837151,104570.0,104560.0,0.19437773]
[1750358194194,6.1127997,104570.0,104560.0,0.0031]
[1750358194626,6.1127997,104570.0,104560.0,0.19437773]
[1750358195525,6.1127997,104570.0,104560.0,0.0031]
[1750358195956,6.1552997,104570.0,104560.0,0.0031]
[1750358196168,6.20688782,104570.0,104560.0,0.0031]
[1750358203654,5.21803144,104570.0,104560.0,0.0031]
[1750358203868,6.20688782,104570.0,104560.0,0.0031]
[1750358210381,6.36236782,104570.0,104560.0,0.02102519]
[1750358210604,6.36236782,104570.0,104560.0,0.02102414]
[1750358212621,6.34166782,104570.0,104560.0,0.02102414]
[1750358212851,5.33101144,104570.0,104560.0,0.02102414]
[1750358213076,6.31986782,104570.0,104560.0,0.02102414]
[1750358213290,6.16438782,104570.0,104560.0,0.02102414]
[1750358213514,6.20442782,104570.0,104560.0,0.02102414]
[1750358216552,5.21557144,104570.0,104560.0,0.02102414]
[1750358216766,6.20442782,104570.0,104560.0,0.02102414]
[1750358218750,6.20442782,104570.0,104560.0,0.02102785]
[1750358221765,6.20442782,104570.0,104560.0,0.02103582]
[1750358221986,0.47980561,104560.0,104550.0,0.24416054]
[1750358222209,6.04778299,104560.0,104550.0,0.0433]
[1750358222877,6.04778299,104560.0,104550.0,0.0217]
[1750358222878,6.08006293,104560.0,104550.0,0.0217]
[1750358223090,6.08006293,104560.0,104550.0,0.0257]
[1750358223310,6.08306293,104560.0,104550.0,0.0257]
[1750358223971,6.08306293,104560.0,104550.0,0.047]
[1750358224446,6.05078299,104560.0,104550.0,0.047]
[1750358226015,6.05078299,104560.0,104550.0,0.23829603]
[1750358226473,6.05078299,104560.0,104550.0,0.047]
[1750358227550,6.05078299,104560.0,104550.0,0.23829603]
[1750358228653,6.05078299,104560.0,104550.0,0.047]
[1750358229682,6.05078299,104560.0,104550.0,0.23829603]
[1750358229939,6.05078299,104560.0,104550.0,0.25742544]
[1750358230988,6.05078299,104560.0,104550.0,0.047]
[1750358231264,6.04121929,104560.0,104550.0,0.047]
[1750358232110,6.04121929,104560.0,104550.0,0.23829603]
[1750358233545,6.04121929,104560.0,104550.0,0.24786083]
[1750358233758,6.04121929,104560.0,104550.0,0.047]
[1750358236749,6.06409375,104560.0,104550.0,0.047]
[1750358236967,6.06409375,104560.0,104550.0,0.0257]
[1750358238063,6.06409375,104560.0,104550.0,0.0475]
[1750358239386,6.04121929,104560.0,104550.0,0.0475]
[1750358239603,6.06409141,104560.0,104550.0,0.0475]
[1750358240034,6.06409141,104560.0,104550.0,0.0257]
[1750358240962,6.04121929,104560.0,104550.0,0.0257]
[1750358241175,6.06409241,104560.0,104550.0,0.0257]
[1750358241621,6.06409241,104560.0,104550.0,0.0479]
[1750358252496,6.06409241,104560.0,104550.0,0.06706]
[1750358252706,6.06409241,104560.0,104550.0,0.0479]
[1750358279599,6.04121929,104560.0,104550.0,0.0479]
[1750358280434,6.06408641,104560.0,104550.0,0.0479]
[1750358280860,5.8587359,104560.0,104550.0,0.0479]
[1750358281060,5.83586878,104560.0,104550.0,0.0479]
[1750358287159,5.83586878,104560.0,104550.0,0.0257]
[1750358289830,5.83586878,104560.0,104550.0,0.0041]
[1750358290058,6.58420781,104560.0,104550.0,0.0041]
[1750358290289,6.51768296,104560.0,104550.0,0.0041]
[1750358290950,6.51668296,104560.0,104550.0,0.0001]
[1750358291383,6.52068296,104560.0,104550.0,0.0011]
[1750358291803,6.51868296,104560.0,104550.0,0.0011]
[1750358292020,6.67904296,104560.0,104550.0,0.0011]
[1750358295637,6.14411477,104560.0,104550.0,0.0011]
[1750358296075,6.14411477,104560.0,104550.0,0.0211]
[1750358296751,6.14411477,104560.0,104550.0,0.0011]
[1750358299750,5.98875477,104560.0,104550.0,0.0011]
[1750358299964,6.02875477,104560.0,104550.0,0.0011]
[1750358300426,5.93347584,104560.0,104550.0,0.0435]
[1750358302321,5.89347584,104560.0,104550.0,0.0435]
[1750358302574,5.93347584,104560.0,104550.0,0.0435]
[1750358303947,5.93347584,104560.0,104550.0,0.023]
[1750358304204,4.94461946,104560.0,104550.0,0.023]
[1750358304435,5.93347584,104560.0,104550.0,0.24436083]
[1750358304649,4.9217574,104560.0,104550.0,0.24436083]
[1750358304863,5.91061378,104560.0,104550.0,0.24436083]
[1750358305076,5.91061378,104560.0,104550.0,0.0435]
[1750358308428,5.93343222,104560.0,104550.0,0.0435]
[1750358309124,0.120922,104560.0,104550.0,0.26348933]
[1750358309353,0.59616807,104560.0,104550.0,0.41884933]
[1750358309577,1.08103311,104560.0,104550.0,0.41884933]
[1750358310041,0.58260492,104560.0,104550.0,0.41784933]
[1750358310266,0.59216816,104560.0,104550.0,0.41784933]
[1750358310512,1.09715977,104560.0,104550.0,0.41884933]
[1750358310761,1.08759635,104560.0,104550.0,0.41884933]
[1750358310977,1.09715968,104560.0,104550.0,0.41884933]
[1750358311172,1.09215968,104560.0,104550.0,0.41884933]
[1750358311426,1.1017232,104560.0,104550.0,0.41884933]
[1750358311853,1.08559635,104560.0,104550.0,0.41884933]
[1750358312066,1.09515968,104560.0,104550.0,0.41884933]
[1750358312566,1.1047232,104560.0,104550.0,0.41884933]
[1750358313258,1.08559635,104560.0,104550.0,0.41884933]
[1750358313976,1.09515977,104560.0,104550.0,0.41884933]
[1750358314213,1.07603311,104560.0,104550.0,0.41884933]
[1750358314697,1.08559626,104560.0,104550.0,0.41884933]
[1750358315662,1.0951595,104560.0,104550.0,0.41884933]
[1750358317824,1.10472283,104560.0,104550.0,0.41884933]
[1750358319312,0.11586645,104560.0,104550.0,0.41884933]
[1750358319545,0.77204186,104560.0,104550.0,0.51412826]
[1750358319757,0.57204186,104560.0,104550.0,0.51412826]
[1750358320804,0.58160492,104560.0,104550.0,0.51412826]
[1750358321006,0.07761367,104560.0,104550.0,0.51412826]
[1750358321212,0.57204186,104560.0,104550.0,0.51412826]
[1750358321839,0.58160492,104560.0,104550.0,0.51412826]
[1750358324163,0.59116816,104560.0,104550.0,0.51412826]
[1750358325014,0.58160492,104560.0,104550.0,0.51412826]
[1750358325350,0.59116816,104560.0,104550.0,0.51412826]
[1750358325562,0.51755449,104560.0,104550.0,0.44051459]
[1750358327166,0.50799125,104560.0,104550.0,0.44051459]
[1750358327404,0.51755449,104560.0,104550.0,0.44051459]
[1750358328032,1.01198268,104560.0,104550.0,0.44051459]
[1750358328448,1.01198268,104560.0,104550.0,0.48151459]
[1750358330808,1.00241944,104560.0,104550.0,0.48151459]
[1750358331027,1.01198268,104560.0,104550.0,0.48151459]
[1750358332304,1.02154601,104560.0,104550.0,0.48151459]
[1750358333867,1.02154601,104560.0,104550.0,0.31659043]
[1750358334087,1.29586793,104560.0,104550.0,0.34515602]
[1750358334304,1.25402475,104560.0,104550.0,0.18031159]
[1750358334508,1.25402475,104560.0,104550.0,0.33559159]
[1750358334943,1.24446142,104560.0,104550.0,0.16118236]
[1750358335161,1.24446142,104560.0,104550.0,0.34757603]
[1750358335162,1.2348979,104560.0,104550.0,0.34757603]
[1750358335372,1.2348979,104560.0,104550.0,0.35714083]
[1750358336236,1.2348979,104560.0,104550.0,0.36670554]
[1750358336449,1.2348979,104560.0,104550.0,0.37627015]
[1750358336863,1.2348979,104560.0,104550.0,0.38583467]
[1750358337664,1.2348979,104560.0,104550.0,0.23055467]
[1750358337878,1.2348979,104560.0,104550.0,0.38583467]
[1750358338934,1.2348979,104560.0,104550.0,0.3953991]
[1750358340548,1.03248314,104560.0,104550.0,0.39539846]
[1750358340769,1.05161063,104560.0,104550.0,0.39539864]
[1750358341217,1.24288836,104560.0,104550.0,0.39539864]
[1750358343064,1.05161054,104560.0,104550.0,0.39539818]
[1750358343425,1.05161054,104560.0,104550.0,0.39539773]
[1750358343632,1.04204675,104560.0,104550.0,0.39539773]
[1750358343838,1.05161045,104560.0,104550.0,0.39539773]
[1750358344038,1.05161045,104560.0,104550.0,0.38583357]
[1750358344241,1.06117488,104560.0,104550.0,0.38583357]
[1750358345212,1.06117488,104560.0,104550.0,0.37626932]
[1750358345421,1.04204721,104560.0,104550.0,0.37626932]
[1750358345628,1.04204721,104560.0,104550.0,0.38583348]
[1750358346344,1.051611,104560.0,104550.0,0.38583348]
[1750358346568,1.06117488,104560.0,104550.0,0.38583357]
[1750358347403,1.25245261,104560.0,104550.0,0.37626932]
[1750358347851,6.35039091,104560.0,104550.0,0.001]
[1750358348068,6.31811097,104560.0,104550.0,0.001]
[1750358348666,5.82368278,104560.0,104550.0,0.20186083]
[1750358348881,5.58154117,104560.0,104550.0,0.23055431]
[1750358349094,5.78238251,104560.0,104550.0,0.24011847]
[1750358350113,5.79194621,104560.0,104550.0,0.23055431]
[1750358351614,5.79194621,104560.0,104550.0,0.22099006]
[1750358351837,4.583121,104560.0,104550.0,0.22099006]
[1750358352057,0.50799143,104560.0,104550.0,0.28031865]
[1750358352271,0.51755458,104560.0,104550.0,0.28031865]
[1750358352482,1.01198277,104560.0,104550.0,0.28031865]
[1750358353583,1.02154619,104560.0,104550.0,0.28031865]
[1750358353992,1.03110971,104560.0,104550.0,0.28031865]
[1750358354160,1.02154619,104560.0,104550.0,0.28031865]
[1750358354339,1.0311098,104560.0,104550.0,0.28031865]
[1750358354545,1.0406735,104560.0,104550.0,0.28031865]
[1750358356381,1.04067423,104560.0,104550.0,0.28031865]
[1750358356693,1.23195196,104560.0,104550.0,0.24206083]
[1750358356856,1.21282521,104560.0,104550.0,0.35710064]
[1750358358119,1.25232521,104560.0,104550.0,0.20186083]
[1750358358296,1.25232521,104560.0,104550.0,0.35710083]
[1750358359779,1.25232521,104560.0,104550.0,0.36666554]
[1750358360446,1.2427616,104560.0,104550.0,0.15624]
[1750358360648,1.2331979,104560.0,104550.0,0.15624]
[1750358360854,1.2331979,104560.0,104550.0,0.34753603]
[1750358362501,1.2731179,104560.0,104550.0,0.19229603]
[1750358362711,1.2731179,104560.0,104550.0,0.20186083]
[1750358364616,1.2731179,104560.0,104550.0,0.0105648]
[1750358364820,1.2731179,104560.0,104550.0,0.20186083]
[1750358365030,1.2731179,104560.0,104550.0,0.19229603]
[1750358365881,1.2731179,104560.0,104550.0,0.001]
[1750358366086,5.8522389,104560.0,104550.0,0.001]
[1750358366290,5.87508841,104560.0,104550.0,0.001]
[1750358367224,5.94585113,104560.0,104550.0,0.001]
[1750358367462,5.87508841,104560.0,104550.0,0.001]
[1750358369219,6.03032841,104560.0,104550.0,0.001]
[1750358373813,6.03032841,104560.0,104550.0,0.19229603]
[1750358374584,6.03032841,104560.0,104550.0,0.001]
[1750358375077,6.12559826,104560.0,104550.0,0.001]
[1750358375587,6.03032841,104560.0,104550.0,0.001]
[1750358384649,6.01032841,104560.0,104550.0,0.001]
[1750358384862,6.02942841,104560.0,104550.0,0.001]
[1750358385693,6.5238566,104560.0,104550.0,0.001]
[1750358385910,6.02942841,104560.0,104550.0,0.001]
[1750358387619,6.61363731,104560.0,104550.0,0.001]
[1750358388040,6.36936387,104560.0,104550.0,0.001]
[1750358388480,6.33708393,104560.0,104550.0,0.001]
[1750358389127,6.05417241,104560.0,104550.0,0.001]
[1750358390798,5.85901241,104560.0,104550.0,0.001]
[1750358391027,6.05417241,104560.0,104550.0,0.001]
[1750358392517,6.01557241,104560.0,104550.0,0.001]
[1750358402553,5.82041241,104560.0,104550.0,0.001]
[1750358402755,6.01557241,104560.0,104550.0,0.001]
[1750358415858,5.9927229,104560.0,104550.0,0.001]
[1750358416736,6.01556328,104560.0,104550.0,0.001]
[1750358443710,5.0267069,104560.0,104550.0,0.001]
[1750358443972,6.01556328,104560.0,104550.0,0.001]
[1750358448544,6.01559686,104560.0,104550.0,0.001]
[1750358462339,7.17622945,104560.0,104550.0,0.001]
[1750358462978,7.1190269,104560.0,104550.0,0.001]
[1750358463234,7.1190269,104560.0,104550.0,0.00997695]
[1750358463460,5.17252249,104550.0,104540.0,0.0001]
[1750358463678,5.12960656,104520.0,104510.0,0.24953481]
[1750358463893,6.11846294,104520.0,104510.0,0.25910299]
[1750358464540,6.11846294,104520.0,104510.0,0.23996644]
[1750358464745,6.11846294,104520.0,104510.0,0.25910308]
[1750358464746,6.12822565,104520.0,104510.0,0.25910308]
[1750358464955,6.12922565,104520.0,104510.0,0.26410308]
[1750358465167,6.12922565,104520.0,104510.0,0.2545349]
[1750358465382,6.12922565,104520.0,104510.0,0.27567154]
[1750358465383,6.13022565,104520.0,104510.0,0.27567154]
[1750358465813,6.12065847,104520.0,104510.0,0.25717154]
[1750358466025,6.12065847,104520.0,104510.0,0.29510781]
[1750358466640,6.12065847,104520.0,104510.0,0.28553972]
[1750358466855,5.13180209,104520.0,104510.0,0.29510781]
[1750358467066,6.12065847,104520.0,104510.0,0.29510735]
[1750358467929,6.21592832,104520.0,104510.0,0.2380349]
[1750358468142,6.12065847,104520.0,104510.0,0.24760327]
[1750358468694,6.11965847,104520.0,104510.0,0.2360349]
[1750358468929,6.11009102,104520.0,104510.0,0.2370349]
[1750358469140,6.11109102,104520.0,104510.0,0.24660317]
[1750358469620,6.20536087,104520.0,104510.0,0.0310972]
[1750358469829,6.20636087,104520.0,104510.0,0.23503481]
[1750358470034,6.10437531,104520.0,104510.0,0.25292509]
[1750358470657,6.10437531,104520.0,104510.0,0.26249336]
[1750358471287,6.10437531,104520.0,104510.0,0.29076145]
[1750358471910,6.10437531,104520.0,104510.0,0.29075555]
[1750358472568,5.11551893,104520.0,104510.0,0.29075555]
[1750358472769,6.10437531,104520.0,104510.0,0.30032355]
[1750358474063,6.10437531,104520.0,104510.0,0.29075555]
[1750358474960,6.10437531,104520.0,104510.0,0.29075211]
[1750358475198,6.10437531,104520.0,104510.0,0.27205211]
[1750358475700,6.10437531,104520.0,104510.0,0.28162011]
[1750358477392,6.10437531,104520.0,104510.0,0.27205211]
[1750358477634,6.10437531,104520.0,104510.0,0.26248229]
[1750358477873,5.11551893,104520.0,104510.0,0.26248229]
[1750358478095,6.10437531,104520.0,104510.0,0.27205038]
[1750358478762,6.12350966,104520.0,104510.0,0.26248229]
[1750358478965,6.12350966,104520.0,104510.0,0.27205038]
[1750358479377,6.13307684,104520.0,104510.0,0.27205038]
[1750358479676,5.94172591,104520.0,104510.0,0.2911862]
[1750358480557,5.94172591,104520.0,104510.0,0.28161916]
[1750358480779,6.13307684,104520.0,104510.0,0.29118707]
[1750358481842,6.14264438,104520.0,104510.0,0.29118707]
[1750358482904,5.94172591,104520.0,104510.0,0.29118707]
[1750358483120,5.94172591,104520.0,104510.0,0.29118652]
[1750358483309,5.94172591,104520.0,104510.0,0.29119197]
[1750358483786,5.94172591,104520.0,104510.0,0.27205624]
[1750358484003,4.95286953,104520.0,104510.0,0.28162415]
[1750358484218,5.93215846,104520.0,104510.0,0.28162415]
[1750358484439,5.94172591,104520.0,104510.0,0.27205624]
[1750358484705,6.13307684,104520.0,104510.0,0.26248824]
[1750358484928,6.14264438,104520.0,104510.0,0.26248824]
[1750358486090,6.14264438,104520.0,104510.0,0.26249455]
[1750358487280,6.14264438,104520.0,104510.0,0.25292646]
[1750358487491,5.1442211,104520.0,104510.0,0.29046255]
[1750358487704,6.17291748,104520.0,104510.0,0.28089464]
[1750358488039,6.17291748,104520.0,104510.0,0.26249464]
[1750358488734,6.17291748,104520.0,104510.0,0.27206264]
[1750358490426,6.17291748,104520.0,104510.0,0.26249464]
[1750358491465,6.17291748,104520.0,104510.0,0.27206273]
[1750358491880,6.17291748,104520.0,104510.0,0.27211741]
[1750358492127,6.17291748,104520.0,104510.0,0.28168541]
[1750358492423,1.60051219,104520.0,104510.0,0.28168541]
[1750358493047,1.60051219,104520.0,104510.0,0.29125332]
[1750358494327,0.36132961,104520.0,104510.0,0.80458106]
[1750358494529,0.35176271,104520.0,104510.0,0.31015287]
[1750358494734,0.35176271,104520.0,104510.0,0.31016222]
[1750358494735,0.8461909,104520.0,104510.0,0.31016222]
[1750358496308,0.85575771,104520.0,104510.0,0.31016222]
[1750358497184,0.8653247,104520.0,104510.0,0.31016222]
[1750358498052,0.8653247,104520.0,104510.0,0.31015324]
[1750358498842,0.85575771,104520.0,104510.0,0.31015324]
[1750358499092,0.8653247,104520.0,104510.0,0.31015324]
[1750358499820,0.8653247,104520.0,104510.0,0.3101521]
[1750358500339,0.87489188,104520.0,104510.0,0.3101521]
[1750358502110,0.37089651,104520.0,104510.0,0.3101521]
[1750358502314,0.8653247,104520.0,104510.0,0.3101521]
[1750358502529,0.87489188,104520.0,104510.0,0.3101521]
[1750358502866,0.87489188,104520.0,104510.0,0.29220644]
[1750358503648,0.88445915,104520.0,104510.0,0.29220644]
[1750358503859,0.8653247,104520.0,104510.0,0.29220644]
[1750358504098,0.87489188,104520.0,104510.0,0.29220644]
[1750358504573,0.88445924,104520.0,104510.0,0.29220644]
[1750358506091,1.57023836,104520.0,104510.0,0.26373862]
[1750358506226,1.5798059,104520.0,104510.0,0.43684317]
[1750358506845,1.37888743,104520.0,104510.0,0.44641099]
[1750358508003,1.57980581,104520.0,104510.0,0.44641099]
[1750358509162,1.57980654,104520.0,104510.0,0.44641099]
[1750358509386,1.58960501,104520.0,104510.0,0.23387945]
[1750358509608,1.58003756,104520.0,104510.0,0.03294175]
[1750358509820,6.23720784,104520.0,104510.0,0.03294175]
[1750358510020,6.20762875,104520.0,104510.0,0.03294175]
[1750358511878,5.21877237,104520.0,104510.0,0.03294175]
[1750358512078,6.20762875,104520.0,104510.0,0.03294175]
[1750358513344,6.17534932,104520.0,104510.0,0.03294175]
[1750358515449,6.17534932,104520.0,104510.0,0.22431099]
[1750358515869,6.17534932,104520.0,104510.0,0.23387945]
[1750358516282,6.17534932,104520.0,104510.0,0.23387591]
[1750358516905,6.17534932,104520.0,104510.0,0.04250667]
[1750358517348,6.17534932,104520.0,104510.0,0.03293741]
[1750358521420,6.17534932,104520.0,104510.0,0.03045741]
[1750358522489,6.17534932,104520.0,104510.0,0.03045541]
[1750358522692,6.21518932,104520.0,104510.0,0.03045541]
[1750358524647,5.22633294,104520.0,104510.0,0.22182465]
[1750358524866,6.21518932,104520.0,104510.0,0.22182465]
[1750358525106,6.21518573,104520.0,104510.0,0.22182363]
[1750358525335,6.21518573,104520.0,104510.0,0.03045439]
[1750358525603,6.21518754,104520.0,104510.0,0.03045439]
[1750358525832,6.21518813,104520.0,104510.0,0.03045439]
[1750358527020,6.70961632,104520.0,104510.0,0.03045439]
[1750358527261,6.31046706,104520.0,104510.0,0.03045439]
[1750358530853,6.31046706,104520.0,104510.0,0.03045645]
[1750358531782,6.31046706,104520.0,104510.0,0.23139415]
[1750358532437,6.31046706,104520.0,104510.0,0.03045645]
[1750358532438,6.30089952,104520.0,104510.0,0.03045645]
[1750358532633,6.30089952,104520.0,104510.0,0.22182569]
[1750358533041,6.30089952,104520.0,104510.0,0.22182685]
[1750358533669,5.00604809,104520.0,104510.0,0.26873158]
[1750358533874,5.21653364,104520.0,104510.0,0.28693158]
[1750358534088,6.20539002,104520.0,104510.0,0.28693158]
[1750358534713,5.71096183,104520.0,104510.0,0.28693158]
[1750358535571,6.20539002,104520.0,104510.0,0.27736367]
[1750358535784,6.20539002,104520.0,104510.0,0.25916367]
[1750358535971,6.19582294,104520.0,104510.0,0.25916367]
[1750358536379,6.19582294,104520.0,104510.0,0.2591683]
[1750358536790,6.19582294,104520.0,104510.0,0.23140012]
[1750358536791,6.17668813,104520.0,104510.0,0.23140012]
[1750358538019,6.16712059,104520.0,104510.0,0.23140012]
[1750358538464,6.16712059,104520.0,104510.0,0.03046242]
[1750358539072,6.16712059,104520.0,104510.0,0.0125172]
[1750358539284,6.16712059,104520.0,104510.0,0.03046942]
[1750358540130,6.16712059,104520.0,104510.0,0.22183866]
[1750358540571,6.16712059,104520.0,104510.0,0.23140712]
[1750358540804,6.16712059,104520.0,104510.0,0.24097549]
[1750358542628,6.16712059,104520.0,104510.0,0.22302327]
[1750358546678,6.16712059,104520.0,104510.0,0.24097667]
[1750358547558,6.16712059,104520.0,104510.0,0.22302327]
[1750358547787,6.16712059,104520.0,104510.0,0.24097677]
[1750358552413,6.16712059,104520.0,104510.0,0.2314084]
[1750358552617,6.20422059,104520.0,104510.0,0.2314084]
[1750358553250,6.20422059,104520.0,104510.0,0.23140821]
[1750358553694,6.18502059,104520.0,104510.0,0.23140821]
[1750358554046,6.16712059,104520.0,104510.0,0.23140821]
[1750358556092,6.16712059,104520.0,104510.0,0.23140852]
[1750358556668,6.16712059,104520.0,104510.0,0.24097689]
[1750358560035,6.16712059,104520.0,104510.0,0.24097794]
[1750358563482,6.16712059,104520.0,104510.0,0.23140957]
[1750358564767,6.16712059,104520.0,104510.0,0.23141152]
[1750358564996,5.17826421,104520.0,104510.0,0.23141152]
[1750358565244,6.16712059,104520.0,104510.0,0.24097989]
[1750358567177,6.16712059,104520.0,104510.0,0.22302327]
[1750358567823,5.17826421,104520.0,104510.0,0.24215936]
[1750358568038,0.89779709,104520.0,104510.0,0.28652736]
[1750358568453,0.89779645,104520.0,104510.0,0.28652736]
[1750358568933,0.89779636,104520.0,104510.0,0.28652736]
[1750358569142,0.86532461,104520.0,104510.0,0.28652736]
[1750358569358,0.87489188,104520.0,104510.0,0.28652736]
[1750358570013,0.86532461,104520.0,104510.0,0.28652736]
[1750358570257,0.36132943,104520.0,104510.0,0.28652736]
[1750358570486,0.35176271,104520.0,104510.0,0.28652736]
[1750358570705,0.85575771,104520.0,104510.0,0.28652736]
[1750358571784,0.8653247,104520.0,104510.0,0.28652736]
[1750358572420,0.85575771,104520.0,104510.0,0.28652736]
[1750358572838,0.8653247,104520.0,104510.0,0.28652736]
[1750358574184,0.85575771,104520.0,104510.0,0.28652736]
[1750358574397,0.8653247,104520.0,104510.0,0.28652736]
[1750358574954,0.37089651,104520.0,104510.0,0.28652736]
[1750358575167,0.8653247,104520.0,104510.0,0.28652736]
[1750358576381,0.37089651,104520.0,104510.0,0.28652736]
[1750358576585,0.8653247,104520.0,104510.0,0.28652736]
[1750358577530,0.002,104520.0,104510.0,0.38180629]
[1750358577763,0.002,104520.0,104510.0,0.89540448]
[1750358577992,0.002,104520.0,104510.0,0.87623448]
[1750358578942,0.001,104520.0,104510.0,0.87523448]
[1750358579183,0.002,104520.0,104510.0,0.87723448]
[1750358579411,0.003,104520.0,104510.0,0.88123448]
[1750358580096,0.003,104520.0,104510.0,0.89087306]
[1750358580353,0.003,104520.0,104510.0,0.38680629]
[1750358580586,0.003,104520.0,104510.0,0.88123448]
[1750358587146,0.30772812,104530.0,104520.0,0.22005246]
[1750358587361,0.30772812,104530.0,104520.0,0.50599139]
[1750358588506,0.30872812,104530.0,104520.0,0.50599139]
[1750358589384,0.31849456,104530.0,104520.0,0.50551139]
[1750358589593,0.31949456,104530.0,104520.0,0.50751139]
[1750358593748,0.002,104530.0,104520.0,1.00193958]
[1750358594244,0.002,104530.0,104520.0,0.50751139]
[1750358597367,0.002,104530.0,104520.0,1.00193958]
[1750358598018,0.002,104530.0,104520.0,1.49636777]
[1750358599384,0.002,104530.0,104520.0,1.51090862]
[1750358602601,0.002,104530.0,104520.0,1.53970097]
[1750358603455,0.001,104530.0,104520.0,1.53970097]
[1750358603668,0.34,104550.0,104540.0,0.22001036]
[1750358603881,0.34,104550.0,104540.0,0.47040929]
[1750358605645,0.34,104550.0,104540.0,0.48820929]
[1750358606351,0.34,104550.0,104540.0,0.48920929]
[1750358606599,0.341,104550.0,104540.0,0.48920929]
[1750358606811,0.001,104550.0,104540.0,1.47806567]
[1750358607062,0.001,104550.0,104540.0,1.49476567]
[1750358607319,0.001,104550.0,104540.0,1.50930652]
[1750358608007,0.001,104550.0,104540.0,1.50830652]
[1750358608485,0.002,104550.0,104540.0,1.51230652]
[1750358608744,0.002,104550.0,104540.0,1.51130652]
[1750358608939,0.001,104550.0,104540.0,1.01684784]
[1750358609152,0.002,104550.0,104540.0,1.02184784]
[1750358619551,0.002,104550.0,104540.0,0.35778929]
[1750358619770,0.002,104550.0,104540.0,0.47956929]
[1750358619972,0.002,104550.0,104540.0,0.32428929]
[1750358620218,0.035,104550.0,104540.0,0.47976929]
[1750358621041,0.0182,104550.0,104540.0,0.47976929]
[1750358624412,0.0182,104550.0,104540.0,0.47968929]
[1750358624625,0.0356,104550.0,104540.0,0.32428929]
[1750358624827,0.5299977,104550.0,104540.0,0.32428929]
[1750358625159,0.5299977,104550.0,104540.0,0.47968929]
[1750358625336,0.87956167,104550.0,104540.0,0.32428929]
[1750358625532,0.89869017,104550.0,104540.0,0.47964929]
[1750358626174,0.87956167,104550.0,104540.0,0.47964929]
[1750358626634,0.88912573,104550.0,104540.0,0.47964929]
[1750358626804,0.40429228,104550.0,104540.0,0.47964929]
[1750358627256,0.89868998,104550.0,104540.0,0.47964929]
[1750358627472,0.88912573,104550.0,104540.0,0.47964929]
[1750358627894,0.89868989,104550.0,104540.0,0.47964929]
[1750358628875,0.40429219,104550.0,104540.0,0.47964929]
[1750358630501,0.39472803,104550.0,104540.0,0.47964929]
[1750358632689,0.39472813,104550.0,104540.0,0.47964929]
[1750358632903,0.38516397,104550.0,104540.0,0.47964929]
[1750358633079,0.39472813,104550.0,104540.0,0.47964929]
[1750358633707,0.38516397,104550.0,104540.0,0.47964929]
[1750358634622,0.39472803,104550.0,104540.0,0.47964929]
[1750358635432,0.88912573,104550.0,104540.0,0.47964929]
[1750358635641,0.89868998,104550.0,104540.0,0.47964929]
[1750358635844,0.89868998,104550.0,104540.0,0.31472422]
[1750358636021,0.8986909,104550.0,104540.0,0.22901036]
[1750358636225,6.14722638,104550.0,104540.0,0.009]
[1750358636502,6.13766204,104550.0,104540.0,0.009]